[Event "*** Titled Tuesday 3|2 Blitz"]
[Site "Chess.com"]
[Date "2014.12.30"]
[Round "3"]
[White "IMRosen"]
[Black "kharposh"]
[Result "1-0"]
[WhiteElo "2037"]
[BlackElo "2004"]
[TimeControl "180+2"]
[EndTime "11:34:47 PST"]
[Termination "IMRosen won by checkmate"]

1. c4 {[%clk 0:03:00]} 1... e5 {[%clk 0:02:54.2]} 2. Nc3 {[%clk 0:03:01.3]} 2...
Nf6 {[%clk 0:02:55.3]} 3. Nf3 {[%clk 0:03:02.5]} 3... Nc6 {[%clk 0:02:55.3]} 4.
a3 {[%clk 0:03:04.1]} 4... d6 {[%clk 0:02:51.8]} 5. d4 {[%clk 0:02:56.5]} 5...
exd4 {[%clk 0:02:52]} 6. Nxd4 {[%clk 0:02:56.4]} 6... Be7 {[%clk 0:02:50.7]} 7.
g3 {[%clk 0:02:56.8]} 7... O-O {[%clk 0:02:50.4]} 8. Bg2 {[%clk 0:02:58.5]} 8...
Nxd4 {[%clk 0:02:50.9]} 9. Qxd4 {[%clk 0:03:00.4]} 9... Nd7 {[%clk 0:02:51.1]}
10. b4 {[%clk 0:02:51.4]} 10... Bf6 {[%clk 0:02:51.5]} 11. Qd2 {[%clk
0:02:26.9]} 11... Ne5 {[%clk 0:02:52.6]} 12. Qa2 {[%clk 0:02:16.6]} 12... Nd3+
{[%clk 0:02:44.6]} 13. exd3 {[%clk 0:02:13.6]} 13... Bxc3+ {[%clk 0:02:45.4]}
14. Kd1 {[%clk 0:02:07.4]} 14... Bg4+ {[%clk 0:02:33.3]} 15. Kc2 {[%clk
0:02:07.2]} 15... Bxa1 {[%clk 0:02:29.1]} 16. Qxa1 {[%clk 0:02:09.1]} 16... Re8
{[%clk 0:02:27.6]} 17. Be3 {[%clk 0:02:08.1]} 17... c6 {[%clk 0:02:16.3]} 18.
Qd4 {[%clk 0:01:49.7]} 18... Bf5 {[%clk 0:02:08.4]} 19. g4 {[%clk 0:01:43.4]}
19... Bg6 {[%clk 0:02:07.6]} 20. h4 {[%clk 0:01:41.9]} 20... h6 {[%clk
0:02:03.2]} 21. Qc3 {[%clk 0:01:13.1]} 21... Qf6 {[%clk 0:01:55.1]} 22. Bd4
{[%clk 0:01:07.7]} 22... Re2+ {[%clk 0:01:55.4]} 23. Kb3 {[%clk 0:01:06.2]}
23... Qf4 {[%clk 0:01:47.6]} 24. Bxg7 {[%clk 0:00:57.3]} 24... a5 {[%clk
0:01:48.2]} 25. bxa5 {[%clk 0:00:51.5]} 25... Rd2 {[%clk 0:01:43.4]} 26. Rh3
{[%clk 0:00:43.2]} 26... Bxd3 {[%clk 0:00:49.5]} 27. Bh8 {[%clk 0:00:06.9]}
27... Bc2+ {[%clk 0:00:48.9]} 28. Kb4 {[%clk 0:00:08.5]} 28... c5+ {[%clk
0:00:44.3]} 29. Kb5 {[%clk 0:00:09.1]} 29... Rd4 {[%clk 0:00:43.5]} 30. Bxd4
{[%clk 0:00:07.3]} 30... cxd4 {[%clk 0:00:43.5]} 31. Qxc2 {[%clk 0:00:03.4]}
31... Qe5+ {[%clk 0:00:43.6]} 32. Bd5 {[%clk 0:00:04.6]} 32... Qe8+ {[%clk
0:00:42.6]} 33. Kb4 {[%clk 0:00:04.3]} 33... Qe1+ {[%clk 0:00:43.5]} 34. Kb3
{[%clk 0:00:04.9]} 34... Kf8 {[%clk 0:00:36.8]} 35. Ka2 {[%clk 0:00:06.3]} 35...
Rxa5 {[%clk 0:00:35.1]} 36. Rb3 {[%clk 0:00:06.1]} 36... Kg7 {[%clk 0:00:29.5]}
37. Qb2 {[%clk 0:00:07.2]} 37... Qd1 {[%clk 0:00:28.3]} 38. Rxb7 {[%clk
0:00:07.5]} 38... Kg8 {[%clk 0:00:20.3]} 39. Bxf7+ {[%clk 0:00:07.4]} 39... Kf8
{[%clk 0:00:20.4]} 40. Bd5 {[%clk 0:00:09.3]} 40... Qa4 {[%clk 0:00:16.4]} 41.
Rf7+ {[%clk 0:00:10.2]} 41... Ke8 {[%clk 0:00:13.3]} 42. Qb8# {[%clk 0:00:11.4]}
1-0

[Event "*** Titled Tuesday 3|2 Blitz"]
[Site "Chess.com"]
[Date "2014.12.30"]
[Round "3"]
[White "MattyDPerrine"]
[Black "SidArun"]
[Result "1-0"]
[WhiteElo "1981"]
[BlackElo "1813"]
[TimeControl "180+2"]
[EndTime "11:34:56 PST"]
[Termination "MattyDPerrine won by resignation"]

1. d4 {[%clk 0:02:54.7]} 1... Nf6 {[%clk 0:02:58.2]} 2. c4 {[%clk 0:02:55.9]}
2... c5 {[%clk 0:02:58.5]} 3. d5 {[%clk 0:02:53.4]} 3... e6 {[%clk 0:02:59.3]}
4. Nc3 {[%clk 0:02:54.4]} 4... exd5 {[%clk 0:03:00.2]} 5. cxd5 {[%clk
0:02:56.3]} 5... d6 {[%clk 0:03:01.4]} 6. Nf3 {[%clk 0:02:56.8]} 6... g6 {[%clk
0:03:02.2]} 7. Nd2 {[%clk 0:02:57.9]} 7... Bg7 {[%clk 0:03:03]} 8. e4 {[%clk
0:02:59.5]} 8... O-O {[%clk 0:03:03.5]} 9. Be2 {[%clk 0:03:00.6]} 9... Nbd7
{[%clk 0:02:59.8]} 10. O-O {[%clk 0:02:58.5]} 10... a6 {[%clk 0:02:41.4]} 11. a4
{[%clk 0:02:59]} 11... Re8 {[%clk 0:02:38.4]} 12. f4 {[%clk 0:02:58]} 12... c4
{[%clk 0:02:34.2]} 13. Bxc4 {[%clk 0:02:53.9]} 13... Nc5 {[%clk 0:02:35.1]} 14.
Qf3 {[%clk 0:02:38.3]} 14... Ng4 {[%clk 0:02:27.9]} 15. Ndb1 {[%clk 0:01:44.6]}
15... Qh4 {[%clk 0:02:08.5]} 16. h3 {[%clk 0:01:32.5]} 16... Bd4+ {[%clk
0:02:08.4]} 17. Kh1 {[%clk 0:01:33.3]} 17... Nf2+ {[%clk 0:02:08.4]} 18. Kh2
{[%clk 0:01:32.4]} 18... Ncxe4 {[%clk 0:01:38.1]} 19. Nxe4 {[%clk 0:01:29.4]}
19... Nxe4 {[%clk 0:01:37.2]} 20. Nd2 {[%clk 0:01:24.3]} 20... Nxd2 {[%clk
0:01:34.3]} 21. Bxd2 {[%clk 0:01:26.2]} 21... Bxb2 {[%clk 0:01:35.3]} 22. Rab1
{[%clk 0:01:24.9]} 22... Bd4 {[%clk 0:01:36]} 23. g4 {[%clk 0:01:12.3]} 23...
Qf6 {[%clk 0:01:05.8]} 24. f5 {[%clk 0:00:58]} 24... Be5+ {[%clk 0:00:58.7]} 25.
Kh1 {[%clk 0:00:56.3]} 25... gxf5 {[%clk 0:00:59.8]} 26. Bd3 {[%clk 0:00:39.9]}
26... f4 {[%clk 0:00:49.8]} 27. Qe4 {[%clk 0:00:35.6]} 27... Qh4 {[%clk
0:00:49.2]} 28. Qg2 {[%clk 0:00:29.1]} 28... Kh8 {[%clk 0:00:28.5]} 29. Bxf4
{[%clk 0:00:26.7]} 29... Bxf4 {[%clk 0:00:26.5]} 30. Rxf4 {[%clk 0:00:28.6]}
30... Re1+ {[%clk 0:00:27.6]} 31. Rf1 {[%clk 0:00:22.6]} 31... Rxb1 {[%clk
0:00:28]} 32. Rxb1 {[%clk 0:00:23.4]} 32... Bd7 {[%clk 0:00:26.1]} 33. Rxb7
{[%clk 0:00:23.8]} 33... Qe1+ {[%clk 0:00:27.1]} 34. Qf1 {[%clk 0:00:21.5]}
34... Qxf1+ {[%clk 0:00:26.3]} 35. Bxf1 {[%clk 0:00:23.4]} 35... Bxa4 {[%clk
0:00:27.5]} 36. Rxf7 {[%clk 0:00:25]} 36... Rb8 {[%clk 0:00:27.3]} 37. Bd3
{[%clk 0:00:26.3]} 37... Kg8 {[%clk 0:00:25.9]} 38. Ra7 {[%clk 0:00:21.3]} 38...
Bb5 {[%clk 0:00:25.7]} 39. Bxh7+ {[%clk 0:00:22]} 39... Kh8 {[%clk 0:00:26.1]}
40. Bf5 {[%clk 0:00:22.5]} 40... Re8 {[%clk 0:00:24.9]} 41. Be6 {[%clk
0:00:22.8]} 41... Rf8 {[%clk 0:00:24.5]} 42. Kg2 {[%clk 0:00:23.9]} 42... Bf1+
{[%clk 0:00:23.5]} 43. Kg3 {[%clk 0:00:25]} 43... Rb8 {[%clk 0:00:23.8]} 44. h4
{[%clk 0:00:23.6]} 44... Rb3+ {[%clk 0:00:24.7]} 45. Kf4 {[%clk 0:00:25.2]}
45... Rb4+ {[%clk 0:00:24.5]} 46. Kg5 {[%clk 0:00:26.3]} 46... Rb8 {[%clk
0:00:14.5]} 47. Kh6 {[%clk 0:00:24.4]} 1-0

[Event "*** Titled Tuesday 3|2 Blitz"]
[Site "Chess.com"]
[Date "2014.12.30"]
[Round "3"]
[White "jlandaw"]
[Black "chessmachined"]
[Result "1-0"]
[WhiteElo "2331"]
[BlackElo "2141"]
[TimeControl "180+2"]
[EndTime "11:34:59 PST"]
[Termination "jlandaw won by checkmate"]

1. e4 {[%clk 0:03:00]} 1... g6 {[%clk 0:02:59.2]} 2. Nc3 {[%clk 0:02:59.1]} 2...
c6 {[%clk 0:03:00.3]} 3. g3 {[%clk 0:02:59.9]} 3... d5 {[%clk 0:03:00.6]} 4. Bg2
{[%clk 0:03:00.9]} 4... e6 {[%clk 0:03:01.9]} 5. d4 {[%clk 0:03:01.7]} 5... Bg7
{[%clk 0:03:03]} 6. Nge2 {[%clk 0:03:02.6]} 6... Ne7 {[%clk 0:03:01.6]} 7. O-O
{[%clk 0:03:03.8]} 7... a6 {[%clk 0:03:01]} 8. a4 {[%clk 0:03:03.9]} 8... b6
{[%clk 0:02:57.5]} 9. b3 {[%clk 0:03:03.8]} 9... Bb7 {[%clk 0:02:57.4]} 10. Ba3
{[%clk 0:03:04.4]} 10... Nd7 {[%clk 0:02:55.8]} 11. a5 {[%clk 0:03:00.3]} 11...
b5 {[%clk 0:02:49.8]} 12. f4 {[%clk 0:02:20.7]} 12... f5 {[%clk 0:02:38.8]} 13.
exd5 {[%clk 0:02:16.3]} 13... exd5 {[%clk 0:02:36.5]} 14. Nc1 {[%clk 0:02:09.9]}
14... c5 {[%clk 0:02:37.4]} 15. N3e2 {[%clk 0:02:06.3]} 15... b4 {[%clk
0:02:20.2]} 16. Bb2 {[%clk 0:02:07]} 16... O-O {[%clk 0:02:04.3]} 17. Nd3 {[%clk
0:02:05.1]} 17... Qc7 {[%clk 0:02:00.4]} 18. Kh1 {[%clk 0:01:51.3]} 18... Rac8
{[%clk 0:01:45.5]} 19. Re1 {[%clk 0:01:28.5]} 19... Kh8 {[%clk 0:01:35.5]} 20.
Ng1 {[%clk 0:01:28]} 20... Nc6 {[%clk 0:01:04.7]} 21. Nf3 {[%clk 0:01:00.5]}
21... c4 {[%clk 0:01:02.3]} 22. bxc4 {[%clk 0:00:59]} 22... dxc4 {[%clk
0:01:03.2]} 23. Nde5 {[%clk 0:00:57.3]} 23... c3 {[%clk 0:01:04]} 24. Bc1 {[%clk
0:00:53.9]} 24... Ncxe5 {[%clk 0:01:01.1]} 25. fxe5 {[%clk 0:00:53.9]} 25...
Rce8 {[%clk 0:00:39.1]} 26. Bf4 {[%clk 0:00:44.6]} 26... Qc4 {[%clk 0:00:39.6]}
27. Qe2 {[%clk 0:00:26.8]} 27... Qxe2 {[%clk 0:00:36.4]} 28. Rxe2 {[%clk
0:00:28.7]} 28... Be4 {[%clk 0:00:37.6]} 29. Ng5 {[%clk 0:00:28.7]} 29... Bxg2+
{[%clk 0:00:38.4]} 30. Kxg2 {[%clk 0:00:30.6]} 30... h6 {[%clk 0:00:38]} 31. Nf3
{[%clk 0:00:30.4]} 31... g5 {[%clk 0:00:39.6]} 32. Be3 {[%clk 0:00:31]} 32... f4
{[%clk 0:00:40.1]} 33. gxf4 {[%clk 0:00:32.3]} 33... gxf4 {[%clk 0:00:42]} 34.
Bf2 {[%clk 0:00:33.9]} 34... Nb8 {[%clk 0:00:42.5]} 35. d5 {[%clk 0:00:32.7]}
35... Nd7 {[%clk 0:00:38.5]} 36. Rae1 {[%clk 0:00:32.9]} 36... Rg8 {[%clk
0:00:25.2]} 37. Kh3 {[%clk 0:00:33.3]} 37... Rb8 {[%clk 0:00:17]} 38. e6 {[%clk
0:00:26.6]} 38... Nf6 {[%clk 0:00:18]} 39. d6 {[%clk 0:00:27.8]} 39... Rb5
{[%clk 0:00:17.3]} 40. e7 {[%clk 0:00:19]} 40... Re8 {[%clk 0:00:18.4]} 41. Bh4
{[%clk 0:00:19.5]} 41... Rh5 {[%clk 0:00:17.8]} 42. Kg2 {[%clk 0:00:19.4]} 42...
Nd7 {[%clk 0:00:18.2]} 43. Kh3 {[%clk 0:00:18.5]} 43... Bf6 {[%clk 0:00:18.6]}
44. Kg4 {[%clk 0:00:19.6]} 44... Bxh4 {[%clk 0:00:12.6]} 45. Kxh5 {[%clk
0:00:20.9]} 45... Bxe1 {[%clk 0:00:13.6]} 46. Rxe1 {[%clk 0:00:22.3]} 46... Kh7
{[%clk 0:00:15.5]} 47. Re6 {[%clk 0:00:22.9]} 47... Kg7 {[%clk 0:00:16.2]} 48.
Rxh6 {[%clk 0:00:21.2]} 48... Kf7 {[%clk 0:00:16.9]} 49. Ng5+ {[%clk 0:00:20.8]}
49... Kg8 {[%clk 0:00:18.5]} 50. Ne4 {[%clk 0:00:21.8]} 50... Kg7 {[%clk
0:00:19.6]} 51. Rg6+ {[%clk 0:00:22.9]} 51... Kf7 {[%clk 0:00:21.3]} 52. Ng5#
{[%clk 0:00:24]} 1-0

[Event "*** Titled Tuesday 3|2 Blitz"]
[Site "Chess.com"]
[Date "2014.12.30"]
[Round "3"]
[White "Sebastian"]
[Black "RitvarsReimanis"]
[Result "0-1"]
[WhiteElo "2536"]
[BlackElo "2305"]
[TimeControl "180+2"]
[EndTime "11:35:02 PST"]
[Termination "RitvarsReimanis won on time"]

1. e4 {[%clk 0:02:57.2]} 1... c5 {[%clk 0:02:52.7]} 2. c4 {[%clk 0:02:53]} 2...
Nc6 {[%clk 0:02:17.9]} 3. Nc3 {[%clk 0:02:47.1]} 3... e5 {[%clk 0:02:14.9]} 4.
g3 {[%clk 0:02:46.7]} 4... g6 {[%clk 0:02:15.6]} 5. Bg2 {[%clk 0:02:38.3]} 5...
Bg7 {[%clk 0:02:16.8]} 6. d3 {[%clk 0:02:34.8]} 6... d6 {[%clk 0:02:15.4]} 7. a3
{[%clk 0:02:26.2]} 7... Rb8 {[%clk 0:02:10.3]} 8. b4 {[%clk 0:02:23.6]} 8... b6
{[%clk 0:02:06.6]} 9. Nge2 {[%clk 0:02:03.3]} 9... f5 {[%clk 0:02:01.9]} 10.
exf5 {[%clk 0:01:59.2]} 10... Nd4 {[%clk 0:02:00.4]} 11. fxg6 {[%clk 0:01:55.4]}
11... hxg6 {[%clk 0:02:02.3]} 12. Nxd4 {[%clk 0:01:55.8]} 12... cxd4 {[%clk
0:02:00.8]} 13. Nd5 {[%clk 0:01:57.1]} 13... b5 {[%clk 0:01:51.2]} 14. cxb5
{[%clk 0:01:05.5]} 14... Rxb5 {[%clk 0:01:53.1]} 15. Qa4 {[%clk 0:01:04.3]}
15... Bd7 {[%clk 0:01:53.7]} 16. Qxa7 {[%clk 0:00:49.6]} 16... Rxd5 {[%clk
0:01:49.7]} 17. Bxd5 {[%clk 0:00:45.7]} 17... Qc8 {[%clk 0:01:51.6]} 18. Bd2
{[%clk 0:00:44.9]} 18... Qc2 {[%clk 0:01:42.5]} 19. Qa6 {[%clk 0:00:33.9]} 19...
Nf6 {[%clk 0:01:35.7]} 20. Rc1 {[%clk 0:00:31.9]} 20... Qb2 {[%clk 0:01:34.9]}
21. Qxd6 {[%clk 0:00:22.2]} 21... Nxd5 {[%clk 0:01:32.3]} 22. Qxd5 {[%clk
0:00:15.6]} 22... Qxa3 {[%clk 0:01:32.2]} 23. O-O {[%clk 0:00:08.8]} 23... Qxd3
{[%clk 0:01:32.6]} 24. Rc7 {[%clk 0:00:09.6]} 24... Qf5 {[%clk 0:01:30.3]} 25.
Ra1 {[%clk 0:00:09.5]} 25... Bf6 {[%clk 0:01:22.3]} 26. Ra8+ {[%clk 0:00:04.5]}
26... Bd8 {[%clk 0:01:23]} 27. Bg5 {[%clk 0:00:03.4]} 27... Qb1+ {[%clk
0:01:02.8]} 28. Rc1 {[%clk 0:00:03.9]} 28... Qxc1+ {[%clk 0:00:10.7]} 29. Bxc1
{[%clk 0:00:01.4]} 29... Ke7 {[%clk 0:00:12.6]} 30. Rxd8 {[%clk 0:00:01.2]}
30... Rxd8 {[%clk 0:00:13.1]} 31. Bg5+ {[%clk 0:00:02.9]} 31... Ke8 {[%clk
0:00:15]} 0-1

[Event "*** Titled Tuesday 3|2 Blitz"]
[Site "Chess.com"]
[Date "2014.12.30"]
[Round "3"]
[White "bsmail"]
[Black "NMLuo"]
[Result "0-1"]
[WhiteElo "2143"]
[BlackElo "2096"]
[TimeControl "180+2"]
[EndTime "11:35:02 PST"]
[Termination "NMLuo won by checkmate"]

1. d4 {[%clk 0:03:00]} 1... Nf6 {[%clk 0:02:58.5]} 2. c4 {[%clk 0:02:59.2]} 2...
c5 {[%clk 0:02:59.3]} 3. d5 {[%clk 0:03:00.2]} 3... e6 {[%clk 0:03:00.6]} 4. Nc3
{[%clk 0:03:01]} 4... exd5 {[%clk 0:03:01.3]} 5. cxd5 {[%clk 0:03:02.9]} 5... d6
{[%clk 0:03:02.2]} 6. Nf3 {[%clk 0:03:03.8]} 6... g6 {[%clk 0:03:03.3]} 7. Bf4
{[%clk 0:03:04.3]} 7... Bg7 {[%clk 0:03:04.3]} 8. e3 {[%clk 0:03:04.7]} 8... O-O
{[%clk 0:03:04.7]} 9. h3 {[%clk 0:03:03.2]} 9... h6 {[%clk 0:03:04.8]} 10. Be2
{[%clk 0:03:03]} 10... Re8 {[%clk 0:03:00.8]} 11. O-O {[%clk 0:03:03.3]} 11...
a6 {[%clk 0:02:30.8]} 12. a4 {[%clk 0:03:03.7]} 12... Ne4 {[%clk 0:02:31.3]} 13.
Nxe4 {[%clk 0:02:59.9]} 13... Rxe4 {[%clk 0:02:31.8]} 14. Nd2 {[%clk 0:02:47.7]}
14... Rxf4 {[%clk 0:01:57.2]} 15. exf4 {[%clk 0:02:48.3]} 15... Bxb2 {[%clk
0:01:53.9]} 16. Rb1 {[%clk 0:02:49.2]} 16... Bg7 {[%clk 0:01:54.5]} 17. Nc4
{[%clk 0:02:46.7]} 17... b5 {[%clk 0:01:49.7]} 18. axb5 {[%clk 0:02:46.8]} 18...
axb5 {[%clk 0:01:50.5]} 19. Rxb5 {[%clk 0:02:45.2]} 19... Ba6 {[%clk 0:01:51.1]}
20. Rb3 {[%clk 0:02:32.1]} 20... Qe7 {[%clk 0:01:30.8]} 21. Re3 {[%clk
0:02:26.1]} 21... Qf8 {[%clk 0:01:28.4]} 22. Qa4 {[%clk 0:02:24]} 22... Bb7
{[%clk 0:01:23.4]} 23. Qb5 {[%clk 0:02:16.9]} 23... Ba6 {[%clk 0:01:16.7]} 24.
Qb6 {[%clk 0:02:04]} 24... Bxc4 {[%clk 0:01:12.2]} 25. Bxc4 {[%clk 0:02:03.4]}
25... Nd7 {[%clk 0:01:13.2]} 26. Qb7 {[%clk 0:01:57]} 26... Qd8 {[%clk
0:01:00.6]} 27. Rfe1 {[%clk 0:01:53.9]} 27... Nf6 {[%clk 0:00:54.6]} 28. Re7
{[%clk 0:01:44]} 28... Rb8 {[%clk 0:00:54.5]} 29. Qc7 {[%clk 0:01:41.9]} 29...
Qxc7 {[%clk 0:00:54.8]} 30. Rxc7 {[%clk 0:01:42.8]} 30... Rb4 {[%clk 0:00:53.3]}
31. Ba2 {[%clk 0:01:38.5]} 31... Rb2 {[%clk 0:00:48.7]} 32. Ra7 {[%clk
0:01:36.7]} 32... Nh5 {[%clk 0:00:40.9]} 33. g3 {[%clk 0:01:33.8]} 33... Bd4
{[%clk 0:00:40.5]} 34. Ra3 {[%clk 0:00:44.3]} 34... Bxf2+ {[%clk 0:00:35.2]} 35.
Kf1 {[%clk 0:00:45.6]} 35... Nxg3+ {[%clk 0:00:31.8]} 36. Kg2 {[%clk 0:00:45.6]}
36... Bxe1+ {[%clk 0:00:31.6]} 37. Kf3 {[%clk 0:00:40]} 37... Nf5 {[%clk
0:00:20.4]} 38. Bc4 {[%clk 0:00:39.9]} 38... Rb4 {[%clk 0:00:15]} 39. Bd3 {[%clk
0:00:35.8]} 39... Nd4+ {[%clk 0:00:15.1]} 40. Kg2 {[%clk 0:00:30.6]} 40... Rb2+
{[%clk 0:00:15.4]} 41. Kf1 {[%clk 0:00:27.5]} 41... Bb4 {[%clk 0:00:15.8]} 42.
Ra8+ {[%clk 0:00:27.7]} 42... Kg7 {[%clk 0:00:16.6]} 43. f5 {[%clk 0:00:25.9]}
43... gxf5 {[%clk 0:00:16.9]} 44. Ra6 {[%clk 0:00:26.7]} 44... Rd2 {[%clk
0:00:15.2]} 45. Bc4 {[%clk 0:00:26.7]} 45... Rc2 {[%clk 0:00:14.1]} 46. Bd3
{[%clk 0:00:27.6]} 46... Rc3 {[%clk 0:00:14.7]} 47. Be2 {[%clk 0:00:27.3]} 47...
Rc1+ {[%clk 0:00:15]} 48. Kf2 {[%clk 0:00:27.6]} 48... Rc2 {[%clk 0:00:15.9]}
49. Rxd6 {[%clk 0:00:29.3]} 49... Rxe2+ {[%clk 0:00:16.8]} 50. Kg3 {[%clk
0:00:30.9]} 50... Be1+ {[%clk 0:00:16.6]} 51. Kf4 {[%clk 0:00:31.7]} 51... Re4#
{[%clk 0:00:15.9]} 0-1

[Event "*** Titled Tuesday 3|2 Blitz"]
[Site "Chess.com"]
[Date "2014.12.30"]
[Round "3"]
[White "A-Fier"]
[Black "VovAn1991"]
[Result "0-1"]
[WhiteElo "2504"]
[BlackElo "2427"]
[TimeControl "180+2"]
[EndTime "11:35:19 PST"]
[Termination "VovAn1991 won by checkmate"]

1. d4 {[%clk 0:03:00]} 1... Nf6 {[%clk 0:02:58.5]} 2. Bg5 {[%clk 0:03:00.7]}
2... Ne4 {[%clk 0:02:56.6]} 3. Bf4 {[%clk 0:03:01.6]} 3... c5 {[%clk 0:02:57.9]}
4. f3 {[%clk 0:03:02.9]} 4... Qa5+ {[%clk 0:02:57.1]} 5. c3 {[%clk 0:03:03.9]}
5... Nf6 {[%clk 0:02:58.3]} 6. d5 {[%clk 0:03:05]} 6... d6 {[%clk 0:02:56.7]} 7.
e4 {[%clk 0:03:05.5]} 7... g6 {[%clk 0:02:55.9]} 8. Na3 {[%clk 0:03:06.3]} 8...
Bg7 {[%clk 0:02:54.5]} 9. Nc4 {[%clk 0:03:07.2]} 9... Qd8 {[%clk 0:02:52.4]} 10.
a4 {[%clk 0:03:09.1]} 10... O-O {[%clk 0:02:52.3]} 11. Bd3 {[%clk 0:03:09.6]}
11... Nbd7 {[%clk 0:02:44.8]} 12. Ne2 {[%clk 0:03:09.1]} 12... Nb6 {[%clk
0:02:31.6]} 13. O-O {[%clk 0:03:08.1]} 13... Nxc4 {[%clk 0:02:32]} 14. Bxc4
{[%clk 0:03:10]} 14... Nd7 {[%clk 0:02:31.4]} 15. Ng3 {[%clk 0:03:10.5]} 15...
Ne5 {[%clk 0:02:31.4]} 16. Be2 {[%clk 0:03:10.7]} 16... Qc7 {[%clk 0:02:26.9]}
17. c4 {[%clk 0:03:09.9]} 17... e6 {[%clk 0:02:22.7]} 18. Qd2 {[%clk 0:03:09.6]}
18... exd5 {[%clk 0:02:23.6]} 19. cxd5 {[%clk 0:03:08.2]} 19... Re8 {[%clk
0:02:24.2]} 20. Be3 {[%clk 0:03:08]} 20... a6 {[%clk 0:02:20.3]} 21. f4 {[%clk
0:03:07.9]} 21... Nd7 {[%clk 0:02:06.1]} 22. f5 {[%clk 0:02:59.7]} 22... Ne5
{[%clk 0:01:47.1]} 23. f6 {[%clk 0:03:00.5]} 23... Bh8 {[%clk 0:01:43.9]} 24. h4
{[%clk 0:02:54]} 24... Bg4 {[%clk 0:01:30.3]} 25. Bxg4 {[%clk 0:02:51.3]} 25...
Nxg4 {[%clk 0:01:32.2]} 26. Bg5 {[%clk 0:02:51.8]} 26... h6 {[%clk 0:01:05.7]}
27. Qf4 {[%clk 0:02:52.3]} 27... h5 {[%clk 0:01:00]} 28. Nh1 {[%clk 0:02:44.1]}
28... Re5 {[%clk 0:00:58.4]} 29. Nf2 {[%clk 0:02:43.9]} 29... Nxf2 {[%clk
0:00:58.5]} 30. Kxf2 {[%clk 0:02:37.3]} 30... Rae8 {[%clk 0:00:59.2]} 31. Rae1
{[%clk 0:02:38]} 31... Qb6 {[%clk 0:00:57.2]} 32. Re2 {[%clk 0:02:38.2]} 32...
c4+ {[%clk 0:00:57.6]} 33. Kg3 {[%clk 0:02:15.3]} 33... Qd4 {[%clk 0:00:58.5]}
34. Rfe1 {[%clk 0:02:12.3]} 34... b5 {[%clk 0:00:58.1]} 35. axb5 {[%clk
0:02:12.2]} 35... axb5 {[%clk 0:01:00]} 36. Qf3 {[%clk 0:02:11.5]} 36... b4
{[%clk 0:00:55.9]} 37. Re3 {[%clk 0:01:54.1]} 37... Qxb2 {[%clk 0:00:29.5]} 38.
Kh3 {[%clk 0:01:47]} 38... c3 {[%clk 0:00:24.3]} 39. Bf4 {[%clk 0:01:47]} 39...
Bxf6 {[%clk 0:00:20.8]} 40. Bxe5 {[%clk 0:01:48]} 40... Bxe5 {[%clk 0:00:22.7]}
41. Rf1 {[%clk 0:01:49]} 41... Re7 {[%clk 0:00:23.5]} 42. Ree1 {[%clk
0:01:46.3]} 42... c2 {[%clk 0:00:21.8]} 43. Qf2 {[%clk 0:01:47.2]} 43... Qc3+
{[%clk 0:00:20.3]} 44. g3 {[%clk 0:01:48.4]} 44... b3 {[%clk 0:00:20.8]} 45. Re3
{[%clk 0:01:42.5]} 45... Qc4 {[%clk 0:00:19.2]} 46. Rf3 {[%clk 0:01:42.4]} 46...
c1=Q {[%clk 0:00:11.2]} 47. Rxc1 {[%clk 0:01:43.5]} 47... Qxc1 {[%clk
0:00:11.5]} 48. Rxb3 {[%clk 0:01:45.3]} 48... Qc8+ {[%clk 0:00:12.4]} 49. Kg2
{[%clk 0:01:45.8]} 49... Rb7 {[%clk 0:00:14.2]} 50. Rxb7 {[%clk 0:01:43.9]}
50... Qxb7 {[%clk 0:00:16.1]} 51. Kh3 {[%clk 0:01:45.4]} 51... Qc8+ {[%clk
0:00:16.6]} 52. Kg2 {[%clk 0:01:45.4]} 52... Qc4 {[%clk 0:00:17.4]} 53. Qf3
{[%clk 0:01:46]} 53... Qc2+ {[%clk 0:00:18.1]} 54. Kh3 {[%clk 0:01:47]} 54...
Kg7 {[%clk 0:00:18.3]} 55. Qe3 {[%clk 0:01:47.4]} 55... Qc3 {[%clk 0:00:14.7]}
56. Qf2 {[%clk 0:01:48.4]} 56... Qd3 {[%clk 0:00:11.9]} 57. Qg2 {[%clk
0:01:49.7]} 57... Qe3 {[%clk 0:00:12.4]} 58. Kh2 {[%clk 0:01:50.1]} 58... f5
{[%clk 0:00:09.1]} 59. exf5 {[%clk 0:01:50.7]} 59... gxf5 {[%clk 0:00:11]} 60.
Kh1 {[%clk 0:01:50.3]} 60... Qxg3 {[%clk 0:00:08.7]} 61. Qf2 {[%clk 0:01:49]}
61... Qh3+ {[%clk 0:00:06.1]} 62. Kg1 {[%clk 0:01:50.5]} 62... Qg4+ {[%clk
0:00:07.3]} 63. Kh1 {[%clk 0:01:52]} 63... Kf6 {[%clk 0:00:07.2]} 64. Qe1 {[%clk
0:01:46.7]} 64... f4 {[%clk 0:00:07.3]} 65. Qf2 {[%clk 0:01:46.9]} 65... f3
{[%clk 0:00:08.3]} 66. Qg3 {[%clk 0:01:44]} 66... Bxg3 {[%clk 0:00:08.4]} 67.
Kg1 {[%clk 0:01:45.1]} 67... Qd4+ {[%clk 0:00:09.2]} 68. Kh1 {[%clk 0:01:46.1]}
68... Qd1# {[%clk 0:00:10.2]} 0-1